Cogmind - Beta 13 *** ADVENTURER MODE // 2024.07.03 @ 10:19:35 Player: Schmaltz Result: Self-destructed Performance ------------- Evolutions (1) 500 Regions Visited (3) 600 Robots Destroyed (20) 100 Value Destroyed (457) 457 Prototype IDs (0) 0 Alien Tech Used (0) 0 Bonus (74) 74 TOTAL SCORE: 1731 Bonus ------- Follower Combat Kills 74 Cogmind --------- Core Integrity 357/400 Matter 300/300 Energy 100/100 System Corruption 0% Temperature Cool (0) Movement Core (200) Ox3 Location -9/Materials Parts ------- > --- POWER (1) -------- (None) > --- PROPULSION (3) --- (None) > --- UTILITY (3) ------ Improved Heat Sink Medium Storage Unit > --- WEAPON (2) ------- Light Assault Rifle > --- INVENTORY (10) --- Aluminum Leg Small Laser Light Assault Rifle Light Assault Rifle Light Assault Rifle Light Assault Rifle Peak State ------------ > --- POWER ------------ Ion Engine > --- PROPULSION ------- Aluminum Leg Aluminum Leg > --- UTILITY ---------- Improved Heat Sink Medium Storage Unit Terrain Scanner > --- WEAPON ----------- Light Assault Rifle Light Assault Rifle > --- INVENTORY -------- Aluminum Leg Aluminum Leg Wheel Wheel Compact Wheel Heat Sink Small Laser Light Assault Rifle Light Assault Rifle Light Assault Rifle [Rating: 11] Favorites ----------- Power Ion Engine Engine Ion Engine Propulsion Wheel Leg Aluminum Leg Wheel Wheel Utility Medium Storage Unit Device Terrain Scanner Storage Medium Storage Unit Weapon Light Assault Rifle Energy Gun EM Pulse Gun Ballistic Gun Light Assault Rifle Build | -11 -10 -10 -9 ------- Run | Yrd Mat Min Mat Slots Evolved 2 | . . . 2 Power . | . . . . Propulsion 1 | . . . 1 Utility 1 | . . . 1 Weapon . | . . . . Parts Attached 26 | 6 6 10 4 Power 3 | 1 . 1 1 Engine 3 | 1 . 1 1 Core . | . . . . Reactor . | . . . . Propulsion 13 | 2 4 6 1 Treads . | . . . . Leg 6 | . 1 4 1 Wheel 7 | 2 3 2 . Hover . | . . . . Flight . | . . . . Utility 4 | 1 2 . 1 Device 3 | 1 1 . 1 Storage 1 | . 1 . . Processor . | . . . . Hackware . | . . . . Protection . | . . . . Artifact . | . . . . Weapon 6 | 2 . 3 1 Energy Gun 1 | 1 . . . Energy Cannon . | . . . . Ballistic Gun 5 | 1 . 3 1 Ballistic Cannon . | . . . . Launcher . | . . . . Special Weapon . | . . . . Impact Weapon . | . . . . Slashing Weapon . | . . . . Piercing Weapon . | . . . . Special Melee Weapon . | . . . . Unidentified Prototypes . | . . . . Parts Lost 4 | . . 2 2 Power 2 | . . 1 1 Propulsion . | . . . . Utility 1 | . . . 1 Weapon 1 | . . 1 . Highest Loss Streak 2 | . . 1 2 To Critical Strikes . | . . . . Average Slot Usage (%) 93 | . 97 99 78 Engine 12 | . 14 13 8 Leg 10 | . 4 7 24 Wheel 16 | . 23 21 . Device 13 | . 14 14 12 Storage 12 | . 11 14 11 Energy Gun 4 | . 14 3 . Ballistic Gun 21 | . 14 23 22 Naked Turns . | . . . . Heaviest Build 19 | 7 17 19 19 Greatest Support 30 | 20 20 20 30 Greatest Overweight (x) 1 | . 1 . 1 Average Overweight (x) . | . . . . Largest Inventory Capacity 10 | 5 10 10 10 Average Capacity 9 | 5 9 10 10 Most Carried 10 | 5 7 10 10 Average Carried 7 | 2 6 8 8 Final Capacity 10 | 5 10 10 10 Final Carried 10 | 5 7 10 6 Class Distribution -------------------- 65% | Mutant 34% | Scavenger-Mutant Dominant Class ---------------- Mutant | -10/Materials Mutant | -10/Mines Scavenger-Mutant | -9/Materials Resources | -11 -10 -10 -9 ----------- Run | Yrd Mat Min Mat Matter Collected 528 | 245 69 132 82 Remotely . | . . . . Salvage Created 585 | 35 104 105 341 Parts 21 | 4 1 14 2 Haulers Intercepted . | . . . . Recyclers Shooed . | . . . . Parts Field Recycled . | . . . . Retrieved Matter . | . . . . Parts Self-Destructed . | . . . . Prevented . | . . . . Kills | -11 -10 -10 -9 ------- Run | Yrd Mat Min Mat Combat Hostiles Destroyed 19 | 1 2 8 8 Guns 19 | 1 2 8 8 Classes Destroyed 6 | 1 . 1 4 Worker 1 | . . . 1 Swarmer 10 | . . 8 2 Grunt 5 | 1 2 . 2 Brawler 1 | . . . 1 Duelist 1 | . . . 1 Sentry 2 | . . . 2 Best Kill Streak 9 | 1 1 3 9 Combat Bots Only 8 | 1 1 3 8 Max Kills in Single Turn 2 | 1 1 2 1 Gunslinging 1 | . . 1 . Exploded . | . . . . Melee . | . . . . Uniques/NPCs Destroyed . | . . . . Combat | -11 -10 -10 -9 -------- Run | Yrd Mat Min Mat Hostile Shots Fired 90 | 5 14 38 33 Missed 26 | 2 3 11 10 Damage Taken 606 | 25 150 152 279 Core 111 | . 12 56 43 Absorbed by Shields . | . . . . Ignored by Resistances 185 | 8 43 54 80 Core Remaining (%) 86 | 100 . 72 . Volleys Fired 56 | 3 11 16 26 Largest 2 | 2 2 2 2 Hottest 60 | 60 60 60 40 Shots Fired 106 | 6 22 26 52 Gun 106 | 6 22 26 52 Cannon . | . . . . Launcher . | . . . . Special . | . . . . Kinetic 88 | 3 11 22 52 Thermal . | . . . . Explosive . | . . . . Electromagnetic 18 | 3 11 4 . Robot Hit Streak 21 | 5 21 10 17 Robot Miss Streak 1 | . 1 1 1 Penetration Max . | . . . . Secondary Targets 6 | . 1 2 3 Max Gunslinging Chain 1 | . 1 1 1 Shots Hit Robots 88 | 5 19 20 44 Core Hits 41 | 2 6 10 23 Critical Kills 1 | 1 . . . Critical Parts Destroyed 1 | . . 1 . Critical Strikes 2 | 1 . 1 . Destroy 2 | 1 . 1 . Melee Attacks . | . . . . Impact . | . . . . Slashing . | . . . . Piercing . | . . . . Sneak Attacks . | . . . . Combat Hostiles . | . . . . Follow-up Attacks . | . . . . Damage Inflicted 825 | 46 235 169 375 Guns 791 | 46 201 169 375 Cannons . | . . . . Explosions 34 | . 34 . . Melee . | . . . . Ramming . | . . . . Kinetic 614 | 22 69 148 375 Thermal 34 | . 34 . . Explosive . | . . . . Electromagnetic 177 | 24 132 21 . Impact . | . . . . Slashing . | . . . . Piercing . | . . . . Highest Corruption . | . . . . Average Corruption . | . . . . Corruption Purged . | . . . . Corruption Blocked . | . . . . Overload Shots . | . . . . Overflow Damage . | . . . . Projectiles . | . . . . Explosions . | . . . . Melee . | . . . . Knockbacks . | . . . . Impact . | . . . . Kinetic . | . . . . Secondary . | . . . . Self-Inflicted Damage 30 | . 30 . . Shots 1 | . 1 . . Rammed . | . . . . Targets Rammed . | . . . . Kicked . | . . . . Crushed . | . . . . Highest Temperature 58 | 58 27 20 . Average Temperature 17 | 37 10 11 . Received Heat Transfer 189 | 18 108 . 63 Siege Activations . | . . . . Robots Corrupted . | . . . . Combat Hostiles . | . . . . Parts Fried 2 | . 2 . . Impact Corruptions . | . . . . Robots Melted . | . . . . Combat Hostiles . | . . . . Parts Melted . | . . . . Heat Transferred 50 | . 50 . . Parts Sabotaged . | . . . . Parts Stolen . | . . . . Parts Stripped . | . . . . Power Chain Reactions 1 | . 1 . . Alert | -11 -10 -10 -9 ------- Run | Yrd Mat Min Mat Peak Influence 252 | 20 76 252 242 Initial 24 | . 11 24 16 Average 98 | 3 41 127 106 Maximum Alert Level 1 | . . 1 1 Low Security (%) 91 | 100 100 94 73 Level 1 8 | . . 5 26 Level 2 . | . . . . Level 3 . | . . . . Level 4 . | . . . . Level 5 . | . . . . High Security . | . . . . Max Security . | . . . . Squads Dispatched . | . . . . Investigation . | . . . . Extermination . | . . . . Reinforcement . | . . . . Assault . | . . . . Garrison . | . . . . Intercept . | . . . . Searches Triggered . | . . . . Construction Impeded . | . . . . Haulers Reinforced . | . . . . Active Scanning Responses . | . . . . Cargo Convoy Interrupts . | . . . . Stealth | -11 -10 -10 -9 --------- Run | Yrd Mat Min Mat Distress Signals 1 | . . . 1 Communications Jammed . | . . . . Distress Signals . | . . . . Times Spotted 30 | 1 2 10 17 Peak Tracking Total 7 | 1 2 3 7 Tactical Retreats 1 | . . . 1 Traps | -11 -10 -10 -9 ------- Run | Yrd Mat Min Mat Traps Triggered 2 | . . . 2 Indirectly . | . . . . Trap Hack Attempts . | . . . . Triggered . | . . . . Disarmed . | . . . . Reprogrammed . | . . . . Reused . | . . . . Traps Extracted . | . . . . Installed . | . . . . Triggered . | . . . . Machines | -11 -10 -10 -9 ---------- Run | Yrd Mat Min Mat Machines Disabled . | . . . . Max in Single Turn . | . . . . Machines Repaired . | . . . . Machines Dismantled . | . . . . Machines Sabotaged . | . . . . Overloaded Fab Kills . | . . . . Hacking | -11 -10 -10 -9 --------- Run | Yrd Mat Min Mat Machines Accessed 6 | . 4 . 2 Terminals 5 | . 3 . 2 Fabricators . | . . . . Repair Stations . | . . . . Recycling Units 1 | . 1 . . Scanalyzers . | . . . . Garrison Access . | . . . . Total Hacks 9 | . 6 . 3 Successful 4 | . 2 . 2 Failed 5 | . 4 . 1 Catastrophic . | . . . . Database Lockouts . | . . . . Manual 8 | . 6 . 2 Terminals 8 | . 5 . 3 Fabricators . | . . . . Repair Stations . | . . . . Recycling Units 1 | . 1 . . Scanalyzers . | . . . . Garrison Access . | . . . . Terminal Hacks 1 | . . . 1 Record 1 | . . . 1 Fabricator Hacks . | . . . . Repair Station Hacks . | . . . . Recycling Unit Hacks . | . . . . Scanalyzer . | . . . . Garrison Access Hacks . | . . . . Unauthorized Hacks 3 | . 2 . 1 Terminals 2 | . 1 . 1 Botnet 2 | . 1 . 1 Fabricators . | . . . . Repair Stations . | . . . . Recycling Units 1 | . 1 . . Mask 1 | . 1 . . Scanalyzers . | . . . . Garrison Access . | . . . . Data Cores Recovered . | . . . . Used . | . . . . Hacking Detections 3 | . 1 . 2 Full Trace Events . | . . . . Feedback Events . | . . . . Feedback Blocked . | . . . . Robot Schematics Acquired . | . . . . Robots Built . | . . . . Authchips . | . . . . Time . | . . . . Total Robot Build Rating . | . . . . Part Schematics Acquired . | . . . . Parts Built . | . . . . Authchips . | . . . . Time . | . . . . Total Part Build Rating . | . . . . Parts Repaired . | . . . . Time . | . . . . Parts Recycled . | . . . . Recycled Matter . | . . . . Retrieved Matter . | . . . . Retrieved Components . | . . . . Parts Scanalyzed . | . . . . Part Schematics Acquired . | . . . . Parts Damaged . | . . . . Bothacking | -11 -10 -10 -9 ------------ Run | Yrd Mat Min Mat Used RIF Installer . | . . . . Robots Hacked . | . . . . Non-combat . | . . . . Combat . | . . . . Robot Hacks Applied . | . . . . Relay Couplers Released . | . . . . Fabnet Peak Effective % . | . . . . Robots Rewired . | . . . . Allies Hacked . | . . . . Hacks Repelled . | . . . . Allies | -11 -10 -10 -9 -------- Run | Yrd Mat Min Mat Total Allies 3 | . . 3 . Largest Group 3 | . . 3 3 Highest-Rated Group 40 | . . 40 40 Highest-Rated Ally 16 | . . 16 16 Total Orders . | . . . . Ally Attacks 32 | . . 15 17 Total Damage 359 | . . 177 182 Kills 4 | . . 2 2 Allies Corrupted . | . . . . Allies Melted . | . . . . Intel | -11 -10 -10 -9 ------- Run | Yrd Mat Min Mat Robot Analysis Total . | . . . . Derelict Logs Recovered 2 | . . 2 . Drone Launches . | . . . . Drone Recoveries . | . . . . Exploration | -11 -10 -10 -9 ------------- Run | Yrd Mat Min Mat Turns Passed 996 | 88 152 541 215 Spaces Moved 789 | 86 125 488 90 Core 24 | 24 . . . Treads . | . . . . Legs 204 | . 6 108 90 Wheels 561 | 62 119 380 . Hover . | . . . . Flight . | . . . . Fastest Speed 50 | 50 80 80 120 Average Speed 90 | 71 85 88 120 Slowest Speed 190 | 80 190 120 190 Overloaded Moves . | . . . . Propulsion Burnouts . | . . . . Robots Hopped . | . . . . Cave-ins Triggered . | . . . . Exploration Rate (%) 34 | 8 27 89 12 Regions Visited 3 Branch Regions 1 Pre-discovered Areas 1 | . . 1 . Known Exits Taken . | . . . . Unknown Exits Taken 3 | 1 1 1 . Scrap Searched 1 | . . 1 . Spaces Dug . | . . . . Terrain Destroyed 8 | . 8 . . Melee . | . . . . Projectile . | . . . . AOE 8 | . 8 . . Terrain Rammed . | . . . . Walls Destroyed . | . . . . Machines Disabled . | . . . . Actions | -11 -10 -10 -9 --------- Run | Yrd Mat Min Mat Total 979 | 106 148 570 155 Wait 83 | 2 2 50 29 Move 786 | 85 124 487 90 Hop . | . . . . Pick Up 21 | 10 3 6 2 Fast Attach 3 | 1 1 . 1 Attach 9 | 5 . 2 2 Detach . | . . . . Swap 14 | . 5 8 1 Drop 7 | . 2 1 4 Fire 56 | 3 11 16 26 Melee . | . . . . Ram . | . . . . Kick . | . . . . Crush . | . . . . Escape Stasis . | . . . . Rewire . | . . . . Trap . | . . . . Miscellaneous . | . . . . Route ------- -11/Scrapyard -10/Materials -10/Mines (discovered 2 exits: *Mat x2) -9/Materials History --------- Turn | Location | Event 2 | -11/Scrapyard | Met Revision 17 47 | -11/Scrapyard | Discovered new exit (range 8) 89 | -11/Scrapyard | Entered Materials 217 | -10/Materials | Discovered new exit (range 12) 241 | -10/Materials | Entered Mines 265 | -10/Mines | Met a Derelict bent on vengeance 300 | -10/Mines | Build established: Mutant 561 | -10/Mines | Assisted by bots powering up and referring to "LRC-V3" 658 | -10/Mines | Learned location of Zion (-7) 662 | -10/Mines | Learned Materials security intel 672 | -10/Mines | Discovered new exit (range 5) 758 | -10/Mines | Discovered new exit (range 3) 782 | -10/Mines | Entered Materials 782 | -9/Materials | Accompanied by 3 allies 782 | -9/Materials | Evolved 2 slots: Propulsion x1, Utility x1 924 | -9/Materials | Lost 3 allies 957 | -9/Materials | Build established: Scavenger-Mutant 973 | -9/Materials | Destroyed 8 combat bots 997 | -9/Materials | Self-destructed Last Messages --------------- 00957_ R-06 Scavenger collects Lgt. Treads. 00960_ Acquired Lgt. Ion Engine. 00962_ R-06 Scavenger collects Flight Unit. 00962_ Acquired 82 matter. 00967_ R-06 Scavenger collects Aluminum Leg. 00971_ R-06 Scavenger collects Flight Unit. 00974_ K-01 Serf collects debris. 00975_ W-16 Scout distress signal alerts nearby ally. 00978_ K-01 Serf collects debris. 00994_ Triggered Blade Trap. 00994_ Massive razor-sharp blades shoot up from within the floor. 00994_ Lgt. Ion Engine severed. 00994_ Aluminum Leg severed. 00995_ Triggered Blade Trap. 00995_ Massive razor-sharp blades shoot up from within the floor. 00995_ Aluminum Leg severed. 00995_ Lgt. Assault Rifle severed. Map ----- +----------------------------------------------------+ | ?????????????????????????????????????????????????? | | ?????????????????????????????????????????????????? | | ?????????????????????????????????????????????????? | | ?????????????????????????????????????????????????? | | ?????????????????????????????????????????????????? | | ?????????????????????????????????????????????????? | | ?????????????????????????????????????????????????? | | ?????????????????????????????????????????????????? | | ?????????????????????????????????????????????????? | | ?????????????????????????????????????????????????? | | ????????????????????? ???????????????????????????? | | ????????????????????? ???????????????????????????? | | ????????????????????? ???????????????????????????? | | ????????????????????? ???????????????????????????? | | ????????????????????? ???????????????????????????? | | ?????????????####???? ???????????????????????????? | | ?????????????# ???# #??????????????????????????? | | ?????????????#! ??# #??????????????????????????? | | ?????????????? |??# #??????????????????????????? | | ????????#+####? |!?# #??????????????????????????? | | ????????+ /?? ![?# #??????????#???????????????? | | ????????# #??? # #????????# ###?????????????? | | ????????# ######+# ####+### #?????????????? | | ?????"" # Y #?????????????? | | ?????"" + = T #?????????????? | | ????????# =*@[ #?????????????? | | ????????### ################## ! #?????????????? | | ????????#?# #?? ?????????????????????????????????? | | ??????????# #????????????????????????????????????? | | ????????#?# #????????????????????????????????????? | | ????????#?# #?????? ?????????????????????????????? | | ???######?# #???? ???????????????????????????????? | | ???# # #????????????????????????????????????? | | ???#""" # ### #??????????????????????????????? | | ???#""" +%% ???????????????????????? | | ???#""" # ### #??#???????????????????????????? | | ???# #%#????????????????????????????????????? | | ??## [ ?#%#??? ????????????????????????????????? | | ???######?# #??????#?????????????????????????????? | | ?##########%## ??????????????????????????????????? | | ?# ===!= #????????????????????????????????????? | | ## ##########????????????????????????????????????? | | ?# #????????#????????????????????????????????????? | | ## #?????????????????????????????????????????????? | | ?# #?????????#????#?+????????????????????????????? | | ?# #?????????? ??????????????????????????????????? | | ?# ##?????????????????#??????????????????????????? | | ?# #?#??#???? ???????????????????????????????????? | | ?# #?????#???????????????????????????????????????? | | ?# #?????????????????????????????????????????????? | +----------------------------------------------------+ Best States ------------- Heat Dissipation 42 Energy Generation 10 Energy Capacity 250 Matter Stores 300 Matter Capacity 300 Sight Range 16 Terrain Scan Range 14 Terrain Scan Density 10 Resistance: KI 20 Resistance: TH 20 Resistance: EX 20 Resistance: EM 20 Resistance: I 20 Resistance: S 20 Resistance: P 20 Evasion (%) 55 Offensive Hacking 10 Item Schematics ----------------- None Robot Schematics ------------------ None Fabricated ------------ Nothing Alien Tech Used ----------------- None Achievements -------------- None Challenges ------------ None Game ------ Seed DerelictAntimissileKatana Manual? 0 Play Time 00:18:58 Cumulative 3.7 hours Start 2024.07.03 @ 10:01:32 End 2024.07.03 @ 10:19:35 Sessions 1 Manual Loads 0 Difficulty Adventurer Special Mode None Game No. 5 Rogue 1 Adventurer 4 Explorer 0 Win Type - Total 0 Types 0/0/0/0/0/0/0/0/0 Lore% 14 Gallery% 5 Achievement% 7 Wizard Run 0 Options --------- Layout 1 ASCII 0 Keyboard 0 Movement Mouse Keybinds 0 Fullscreen 1 Font 16/SmallcapsGlow Map View 50x40 Zoom Use 0% Tactical HUD 1 Map Filters NONE Filters NONE Steam SD RUN: 4fa04d66-ceb0-4231-82a3-fa88c1c89a07